[Event "*** Titled Tuesday Blitz"]
[Site "Chess.com"]
[Date "2020.05.12"]
[Round "6"]
[White "EddieMarsalla"]
[Black "katchesskat"]
[Result "1-0"]
[WhiteElo "2534"]
[BlackElo "2262"]
[TimeControl "180+1"]
[EndTime "11:07:34 PDT"]
[Termination "EddieMarsalla won on time"]

1. c4 {[%clk 0:03:00.9]} 1... c5 {[%clk 0:03:00.9]} 2. g3 {[%clk 0:03:00.9]}
2... e6 {[%clk 0:03:01.8]} 3. Bg2 {[%clk 0:03:01.2]} 3... a6 {[%clk 0:03:02.3]}
4. Nc3 {[%clk 0:02:58.9]} 4... Qc7 {[%clk 0:03:02.2]} 5. e3 {[%clk 0:02:58.4]}
5... Nf6 {[%clk 0:03:02.1]} 6. Nge2 {[%clk 0:02:58.5]} 6... d6 {[%clk
0:03:02.2]} 7. b3 {[%clk 0:02:58.4]} 7... Be7 {[%clk 0:03:02.3]} 8. Bb2 {[%clk
0:02:58.7]} 8... Nbd7 {[%clk 0:03:02.5]} 9. O-O {[%clk 0:02:59]} 9... Rb8 {[%clk
0:03:02.8]} 10. d4 {[%clk 0:02:59.1]} 10... b6 {[%clk 0:03:02.2]} 11. d5 {[%clk
0:02:54.8]} 11... e5 {[%clk 0:03:02.4]} 12. e4 {[%clk 0:02:55.1]} 12... b5
{[%clk 0:03:02.2]} 13. cxb5 {[%clk 0:02:53.1]} 13... axb5 {[%clk 0:03:03.1]} 14.
Rc1 {[%clk 0:02:53.1]} 14... Qa7 {[%clk 0:02:57.5]} 15. a3 {[%clk 0:02:45.7]}
15... Ba6 {[%clk 0:02:56.4]} 16. Re1 {[%clk 0:02:44.5]} 16... b4 {[%clk
0:02:51.6]} 17. axb4 {[%clk 0:02:41.8]} 17... Rxb4 {[%clk 0:02:49.4]} 18. Ra1
{[%clk 0:02:21.4]} 18... Qb7 {[%clk 0:02:41.7]} 19. Nc1 {[%clk 0:01:54.1]} 19...
O-O {[%clk 0:02:38.3]} 20. Ba3 {[%clk 0:01:54.4]} 20... Rd4 {[%clk 0:02:36.9]}
21. Qc2 {[%clk 0:01:52.7]} 21... Rb8 {[%clk 0:02:16.8]} 22. N3e2 {[%clk
0:01:45.7]} 22... Bxe2 {[%clk 0:02:08.6]} 23. Nxe2 {[%clk 0:01:46.6]} 23... Qxb3
{[%clk 0:02:06.7]} 24. Nxd4 {[%clk 0:01:44.6]} 24... exd4 {[%clk 0:02:03.1]} 25.
Qxb3 {[%clk 0:01:39.3]} 25... Rxb3 {[%clk 0:02:04]} 26. Reb1 {[%clk 0:01:39.6]}
26... Rxb1+ {[%clk 0:01:55.3]} 27. Rxb1 {[%clk 0:01:40.5]} 27... g5 {[%clk
0:01:55.1]} 28. f4 {[%clk 0:01:39.8]} 28... h6 {[%clk 0:01:41.2]} 29. Rb7 {[%clk
0:01:36.4]} 29... Kf8 {[%clk 0:01:38.7]} 30. h4 {[%clk 0:01:29.3]} 30... g4
{[%clk 0:01:26.4]} 31. Kf2 {[%clk 0:01:26.3]} 31... Ke8 {[%clk 0:01:17.9]} 32.
Ke2 {[%clk 0:01:23.2]} 32... Kd8 {[%clk 0:01:16.8]} 33. Kd3 {[%clk 0:01:21.6]}
33... Kc8 {[%clk 0:01:16.6]} 34. Rb1 {[%clk 0:01:18.4]} 34... Kc7 {[%clk
0:01:16]} 35. Re1 {[%clk 0:01:18.5]} 35... Nb6 {[%clk 0:01:05]} 36. Rb1 {[%clk
0:00:50.7]} 36... Nfd7 {[%clk 0:00:39.8]} 37. h5 {[%clk 0:00:46.1]} 37... Na4
{[%clk 0:00:27]} 38. Ra1 {[%clk 0:00:30.6]} 38... Ndb6 {[%clk 0:00:25]} 39. e5
{[%clk 0:00:28.2]} 39... Nc3 {[%clk 0:00:21.8]} 40. Bb2 {[%clk 0:00:23.4]} 40...
Ncxd5 {[%clk 0:00:19.5]} 41. Ra7+ {[%clk 0:00:21.4]} 41... Kd8 {[%clk
0:00:18.8]} 42. exd6 {[%clk 0:00:19.7]} 42... Bxd6 {[%clk 0:00:16.8]} 43. Rxf7
{[%clk 0:00:18.5]} 43... Ne3 {[%clk 0:00:16.3]} 44. Bc6 {[%clk 0:00:17.7]} 44...
Nbd5 {[%clk 0:00:12.4]} 45. Rd7+ {[%clk 0:00:17.1]} 45... Kc8 {[%clk 0:00:11.7]}
46. Rxd6 {[%clk 0:00:17.3]} 46... Kc7 {[%clk 0:00:12.2]} 47. Rxd5 {[%clk
0:00:16.2]} 47... Kxc6 {[%clk 0:00:12.7]} 48. Re5 {[%clk 0:00:15.3]} 48... Nf1
{[%clk 0:00:11.4]} 49. Re6+ {[%clk 0:00:14.8]} 49... Kd5 {[%clk 0:00:11]} 50.
Rxh6 {[%clk 0:00:13.6]} 50... Nxg3 {[%clk 0:00:10.9]} 51. Bxd4 {[%clk
0:00:12.9]} 51... cxd4 {[%clk 0:00:10.5]} 52. Rg6 {[%clk 0:00:12.9]} 52... Ne4
{[%clk 0:00:08.2]} 53. h6 {[%clk 0:00:11.6]} 53... Nc5+ {[%clk 0:00:08.5]} 54.
Ke2 {[%clk 0:00:11.1]} 54... Ke4 {[%clk 0:00:08.7]} 55. h7 {[%clk 0:00:10.6]}
55... d3+ {[%clk 0:00:09.6]} 56. Kd1 {[%clk 0:00:10.2]} 56... Ke3 {[%clk
0:00:09.2]} 57. h8=Q {[%clk 0:00:09.8]} 57... Ne4 {[%clk 0:00:10.1]} 58. Qe5
{[%clk 0:00:08.4]} 58... Kf3 {[%clk 0:00:09.5]} 59. Qxe4+ {[%clk 0:00:08.4]}
59... Kxe4 {[%clk 0:00:09.5]} 60. Rxg4 {[%clk 0:00:08.9]} 60... Kf5 {[%clk
0:00:07.8]} 61. Rh4 {[%clk 0:00:08.4]} 1-0

[Event "*** Titled Tuesday Blitz"]
[Site "Chess.com"]
[Date "2020.05.12"]
[Round "6"]
[White "GreatOwl02"]
[Black "kingmonkey2006"]
[Result "0-1"]
[WhiteElo "2341"]
[BlackElo "2661"]
[TimeControl "180+1"]
[EndTime "11:07:34 PDT"]
[Termination "kingmonkey2006 won on time"]

1. e4 {[%clk 0:03:00.9]} 1... d6 {[%clk 0:00:22.7]} 2. d4 {[%clk 0:02:55.9]}
2... Nd7 {[%clk 0:00:22.9]} 3. c4 {[%clk 0:02:55]} 3... e5 {[%clk 0:00:23.7]} 4.
Nf3 {[%clk 0:02:55.3]} 4... Ngf6 {[%clk 0:00:23.2]} 5. Nc3 {[%clk 0:02:54.7]}
5... c6 {[%clk 0:00:24.1]} 6. Be2 {[%clk 0:02:54.3]} 6... Qc7 {[%clk 0:00:24.8]}
7. O-O {[%clk 0:02:54.1]} 7... Be7 {[%clk 0:00:25.7]} 8. Rb1 {[%clk 0:02:39]}
8... O-O {[%clk 0:00:26.2]} 9. Qc2 {[%clk 0:02:38.1]} 9... a5 {[%clk 0:00:26.7]}
10. Rd1 {[%clk 0:02:37.6]} 10... Rd8 {[%clk 0:00:27.4]} 11. h3 {[%clk
0:02:32.4]} 11... b6 {[%clk 0:00:27.9]} 12. Be3 {[%clk 0:02:32]} 12... Bb7
{[%clk 0:00:28.6]} 13. Rbc1 {[%clk 0:01:56.2]} 13... Nf8 {[%clk 0:00:28.8]} 14.
a3 {[%clk 0:01:49]} 14... Ng6 {[%clk 0:00:28.7]} 15. b4 {[%clk 0:01:47.6]} 15...
axb4 {[%clk 0:00:29.6]} 16. axb4 {[%clk 0:01:48.1]} 16... h6 {[%clk 0:00:28.5]}
17. b5 {[%clk 0:01:42]} 17... c5 {[%clk 0:00:28.4]} 18. dxe5 {[%clk 0:01:36.2]}
18... dxe5 {[%clk 0:00:29.3]} 19. Nd5 {[%clk 0:01:35.7]} 19... Bxd5 {[%clk
0:00:26.3]} 20. exd5 {[%clk 0:01:35.9]} 20... Bd6 {[%clk 0:00:26.7]} 21. Nd2
{[%clk 0:01:25.1]} 21... Ra7 {[%clk 0:00:26.8]} 22. Ra1 {[%clk 0:01:11.8]} 22...
Rda8 {[%clk 0:00:27]} 23. Rxa7 {[%clk 0:00:59.5]} 23... Qxa7 {[%clk 0:00:27.9]}
24. Bd3 {[%clk 0:00:49.6]} 24... Ne7 {[%clk 0:00:27.7]} 25. Ne4 {[%clk
0:00:43.4]} 25... Nxe4 {[%clk 0:00:27.9]} 26. Bxe4 {[%clk 0:00:44.3]} 26... Qa2
{[%clk 0:00:28]} 27. Re1 {[%clk 0:00:24.2]} 27... Ra4 {[%clk 0:00:22.7]} 28.
Qxa2 {[%clk 0:00:20.2]} 28... Rxa2 {[%clk 0:00:23.6]} 29. Bd3 {[%clk 0:00:16.5]}
29... f5 {[%clk 0:00:22.8]} 30. g4 {[%clk 0:00:13.8]} 30... f4 {[%clk
0:00:15.8]} 31. Bc1 {[%clk 0:00:13.8]} 31... g5 {[%clk 0:00:15.9]} 32. Kg2
{[%clk 0:00:11.9]} 32... Kf7 {[%clk 0:00:13.9]} 33. Re2 {[%clk 0:00:11.8]} 33...
Kf6 {[%clk 0:00:14.2]} 34. Rxa2 {[%clk 0:00:11.1]} 34... e4 {[%clk 0:00:14.5]}
35. Bxe4 {[%clk 0:00:10.7]} 35... Ke5 {[%clk 0:00:15.4]} 36. Bf3 {[%clk
0:00:11.2]} 36... Kd4 {[%clk 0:00:15.7]} 37. Be2 {[%clk 0:00:11.7]} 37... Kc3
{[%clk 0:00:16]} 38. Ra3+ {[%clk 0:00:11.2]} 38... Kc2 {[%clk 0:00:15.9]} 39.
Ra1 {[%clk 0:00:10.3]} 39... Be5 {[%clk 0:00:16.5]} 40. Ra7 {[%clk 0:00:09.2]}
40... Ng6 {[%clk 0:00:16.6]} 41. Ba3 {[%clk 0:00:07.6]} 41... Bd4 {[%clk
0:00:16.3]} 42. Rb7 {[%clk 0:00:06.8]} 42... Kd2 {[%clk 0:00:15.8]} 43. Bf3
{[%clk 0:00:05.8]} 43... Ne5 {[%clk 0:00:16]} 44. Rxb6 {[%clk 0:00:05.8]} 44...
Nxc4 {[%clk 0:00:16.3]} 45. Rc6 {[%clk 0:00:03.2]} 45... Nxa3 {[%clk 0:00:16.4]}
46. d6 {[%clk 0:00:01.5]} 46... Nc2 {[%clk 0:00:13.5]} 47. d7 {[%clk 0:00:01.8]}
47... Ne1+ {[%clk 0:00:14.4]} 48. Kf1 {[%clk 0:00:01.7]} 48... Nxf3 {[%clk
0:00:15.3]} 49. d8=Q {[%clk 0:00:02.1]} 49... Nh2+ {[%clk 0:00:15.8]} 50. Kg2
{[%clk 0:00:02.6]} 50... f3+ {[%clk 0:00:16.7]} 51. Kxh2 {[%clk 0:00:02]} 51...
Ke2 {[%clk 0:00:17.6]} 52. Kh1 {[%clk 0:00:02.7]} 52... Kxf2 {[%clk 0:00:18.5]}
53. Rxc5 {[%clk 0:00:02.5]} 53... Bxc5 {[%clk 0:00:18.7]} 54. Qd2+ {[%clk
0:00:03.2]} 54... Kg3 {[%clk 0:00:19.1]} 55. Qe1+ {[%clk 0:00:03]} 55... f2
{[%clk 0:00:20]} 56. Qc3+ {[%clk 0:00:03.1]} 56... Kf4 {[%clk 0:00:20.7]} 57.
Kg2 {[%clk 0:00:03.6]} 57... Bb6 {[%clk 0:00:20.3]} 58. Qc4+ {[%clk 0:00:04]}
58... Ke5 {[%clk 0:00:20.3]} 59. Qc6 {[%clk 0:00:04.2]} 59... Bd4 {[%clk
0:00:20.5]} 60. b6 {[%clk 0:00:03.5]} 60... Kf4 {[%clk 0:00:21.4]} 61. b7 {[%clk
0:00:03.5]} 61... Ke3 {[%clk 0:00:22.3]} 62. b8=Q {[%clk 0:00:03.7]} 62... Ke2
{[%clk 0:00:23.2]} 63. Qb3 {[%clk 0:00:03.5]} 63... f1=Q+ {[%clk 0:00:23.3]} 64.
Kh2 {[%clk 0:00:02.6]} 64... Be5+ {[%clk 0:00:23.5]} 65. Qg3 {[%clk 0:00:01.3]}
65... Qf2+ {[%clk 0:00:23.7]} 0-1

[Event "*** Titled Tuesday Blitz"]
[Site "Chess.com"]
[Date "2020.05.12"]
[Round "6"]
[White "GMartin_Petrov"]
[Black "plumalka"]
[Result "0-1"]
[WhiteElo "2571"]
[BlackElo "2459"]
[TimeControl "180+1"]
[EndTime "11:07:38 PDT"]
[Termination "plumalka won on time"]

1. c4 {[%clk 0:03:00.9]} 1... c5 {[%clk 0:02:58.7]} 2. Nf3 {[%clk 0:03:00.2]}
2... Nc6 {[%clk 0:02:57.1]} 3. Nc3 {[%clk 0:03:00]} 3... e5 {[%clk 0:02:53.9]}
4. e3 {[%clk 0:02:58.9]} 4... Nf6 {[%clk 0:02:53.6]} 5. d4 {[%clk 0:02:58.8]}
5... cxd4 {[%clk 0:02:52.2]} 6. exd4 {[%clk 0:02:58.2]} 6... e4 {[%clk
0:02:52.5]} 7. Ne5 {[%clk 0:02:55.9]} 7... Bb4 {[%clk 0:02:52.1]} 8. Nxc6 {[%clk
0:02:51.9]} 8... dxc6 {[%clk 0:02:49.3]} 9. Be2 {[%clk 0:02:51.8]} 9... O-O
{[%clk 0:02:47.3]} 10. O-O {[%clk 0:02:51.7]} 10... Bf5 {[%clk 0:02:45]} 11. h3
{[%clk 0:02:46.1]} 11... Qd7 {[%clk 0:02:43.4]} 12. Bg5 {[%clk 0:02:36.9]} 12...
Qd6 {[%clk 0:02:32.6]} 13. Qa4 {[%clk 0:02:19.3]} 13... Bxc3 {[%clk 0:02:12.6]}
14. bxc3 {[%clk 0:02:20.2]} 14... Rfe8 {[%clk 0:02:02]} 15. Rab1 {[%clk
0:02:15.1]} 15... b6 {[%clk 0:01:59]} 16. Qb4 {[%clk 0:01:57.9]} 16... Qe6
{[%clk 0:01:53.6]} 17. Rfd1 {[%clk 0:01:54.7]} 17... e3 {[%clk 0:01:49.7]} 18.
Bxe3 {[%clk 0:01:53.3]} 18... Bxb1 {[%clk 0:01:49.4]} 19. Qxb1 {[%clk
0:01:50.3]} 19... Ne4 {[%clk 0:01:49.4]} 20. Qc2 {[%clk 0:01:48]} 20... Nxf2
{[%clk 0:01:47.5]} 21. Bxf2 {[%clk 0:01:37.1]} 21... Qxe2 {[%clk 0:01:47.4]} 22.
Rd2 {[%clk 0:01:37.1]} 22... Qe4 {[%clk 0:01:46.3]} 23. Qb3 {[%clk 0:01:25.5]}
23... Re6 {[%clk 0:01:42.7]} 24. d5 {[%clk 0:01:08]} 24... Rg6 {[%clk
0:01:42.5]} 25. g3 {[%clk 0:01:08.3]} 25... cxd5 {[%clk 0:01:33.8]} 26. cxd5
{[%clk 0:01:07.6]} 26... Rd8 {[%clk 0:01:28.3]} 27. c4 {[%clk 0:01:03.4]} 27...
h5 {[%clk 0:01:26.9]} 28. a4 {[%clk 0:00:55.3]} 28... h4 {[%clk 0:01:27.1]} 29.
g4 {[%clk 0:00:55.4]} 29... f5 {[%clk 0:01:17.5]} 30. Qd3 {[%clk 0:00:35.1]}
30... Qxd3 {[%clk 0:01:06.5]} 31. Rxd3 {[%clk 0:00:36]} 31... fxg4 {[%clk
0:01:06.4]} 32. Bxh4 {[%clk 0:00:35.2]} 32... gxh3+ {[%clk 0:01:05.4]} 33. Kh2
{[%clk 0:00:34.9]} 33... Rd7 {[%clk 0:01:01.6]} 34. a5 {[%clk 0:00:28.3]} 34...
Rg2+ {[%clk 0:01:00.8]} 35. Kxh3 {[%clk 0:00:27.6]} 35... Rc2 {[%clk 0:01:00.9]}
36. axb6 {[%clk 0:00:24.3]} 36... axb6 {[%clk 0:01:01.8]} 37. Rd4 {[%clk
0:00:24.4]} 37... Kf7 {[%clk 0:00:59.9]} 38. Bg3 {[%clk 0:00:23.4]} 38... g5
{[%clk 0:00:59.1]} 39. Kg4 {[%clk 0:00:23.3]} 39... Kg6 {[%clk 0:00:58.4]} 40.
Re4 {[%clk 0:00:22.8]} 40... b5 {[%clk 0:00:53.8]} 41. d6 {[%clk 0:00:16.5]}
41... Rxc4 {[%clk 0:00:51.4]} 42. Rxc4 {[%clk 0:00:16.5]} 42... bxc4 {[%clk
0:00:52.3]} 43. Kf3 {[%clk 0:00:17.2]} 43... Kf5 {[%clk 0:00:52.3]} 44. Ke3
{[%clk 0:00:18.1]} 44... Kg4 {[%clk 0:00:51.3]} 45. Be5 {[%clk 0:00:17.5]} 45...
Kf5 {[%clk 0:00:50.9]} 46. Bg3 {[%clk 0:00:17.7]} 46... c3 {[%clk 0:00:50.5]}
47. Kd3 {[%clk 0:00:17.9]} 47... g4 {[%clk 0:00:48.7]} 48. Bh2 {[%clk
0:00:15.8]} 48... Ke6 {[%clk 0:00:46.6]} 49. Kxc3 {[%clk 0:00:15.4]} 49... Rh7
{[%clk 0:00:39.8]} 50. Bf4 {[%clk 0:00:14.7]} 50... Kf5 {[%clk 0:00:39.8]} 51.
Be3 {[%clk 0:00:12.6]} 51... g3 {[%clk 0:00:39.4]} 52. Kd3 {[%clk 0:00:12.3]}
52... Ke5 {[%clk 0:00:39.1]} 53. Ke2 {[%clk 0:00:12.3]} 53... Kxd6 {[%clk
0:00:38.8]} 54. Bf4+ {[%clk 0:00:12.5]} 54... Kd5 {[%clk 0:00:38.6]} 55. Bxg3
{[%clk 0:00:13.4]} 55... Ke4 {[%clk 0:00:39.1]} 56. Kf2 {[%clk 0:00:11.5]} 56...
Rf7+ {[%clk 0:00:39.3]} 57. Kg2 {[%clk 0:00:11.6]} 57... Rg7 {[%clk 0:00:37.8]}
58. Kh2 {[%clk 0:00:09.7]} 58... Kf3 {[%clk 0:00:38.7]} 59. Bb8 {[%clk
0:00:09.6]} 59... Rg2+ {[%clk 0:00:36.9]} 60. Kh1 {[%clk 0:00:09.6]} 60... Rg8
{[%clk 0:00:35.6]} 61. Bc7 {[%clk 0:00:09]} 61... Rh8+ {[%clk 0:00:34.7]} 62.
Bh2 {[%clk 0:00:08.8]} 62... Rh7 {[%clk 0:00:32.4]} 63. Kg1 {[%clk 0:00:07.8]}
63... Rb7 {[%clk 0:00:33.3]} 64. Kh1 {[%clk 0:00:07.8]} 64... Rb2 {[%clk
0:00:30.7]} 65. Bg1 {[%clk 0:00:06.7]} 65... Kg3 {[%clk 0:00:31.4]} 66. Ba7
{[%clk 0:00:06.7]} 66... Rb7 {[%clk 0:00:27.3]} 67. Bd4 {[%clk 0:00:05.9]} 67...
Re7 {[%clk 0:00:26.6]} 68. Bc5 {[%clk 0:00:04.5]} 68... Re6 {[%clk 0:00:24.3]}
69. Bd4 {[%clk 0:00:02.9]} 69... Re2 {[%clk 0:00:21.1]} 70. Bc5 {[%clk
0:00:02.7]} 70... Re1+ {[%clk 0:00:20.8]} 0-1

[Event "*** Titled Tuesday Blitz"]
[Site "Chess.com"]
[Date "2020.05.12"]
[Round "6"]
[White "Gandrade2"]
[Black "freshfoodcompany"]
[Result "0-1"]
[WhiteElo "2046"]
[BlackElo "2251"]
[TimeControl "180+1"]
[EndTime "11:07:39 PDT"]
[Termination "freshfoodcompany won on time"]

1. b3 {[%clk 0:02:57.8]} 1... d5 {[%clk 0:02:59.6]} 2. Bb2 {[%clk 0:02:57.7]}
2... c5 {[%clk 0:02:59.6]} 3. e3 {[%clk 0:02:57.9]} 3... Nc6 {[%clk 0:02:59]} 4.
Bb5 {[%clk 0:02:58.4]} 4... Nf6 {[%clk 0:02:57.5]} 5. f4 {[%clk 0:02:56.7]} 5...
Bg4 {[%clk 0:02:51.4]} 6. Nf3 {[%clk 0:02:56.4]} 6... e6 {[%clk 0:02:49.4]} 7.
O-O {[%clk 0:02:55.8]} 7... Be7 {[%clk 0:02:48.4]} 8. Qe1 {[%clk 0:02:55.1]}
8... O-O {[%clk 0:02:46]} 9. Bxc6 {[%clk 0:02:49.5]} 9... bxc6 {[%clk
0:02:45.2]} 10. Ne5 {[%clk 0:02:49.7]} 10... Bd6 {[%clk 0:02:38.8]} 11. Nxg4
{[%clk 0:02:35.8]} 11... Nxg4 {[%clk 0:02:35.6]} 12. d3 {[%clk 0:02:32.1]} 12...
Be7 {[%clk 0:02:26.7]} 13. Nd2 {[%clk 0:02:18.8]} 13... Bf6 {[%clk 0:02:23.8]}
14. Bxf6 {[%clk 0:02:14.7]} 14... Qxf6 {[%clk 0:02:18.8]} 15. Qg3 {[%clk
0:02:02.8]} 15... Nh6 {[%clk 0:02:11.4]} 16. Rae1 {[%clk 0:01:54.6]} 16... Nf5
{[%clk 0:02:09.5]} 17. Qf2 {[%clk 0:01:46.8]} 17... Rfd8 {[%clk 0:02:00.3]} 18.
e4 {[%clk 0:01:39.6]} 18... Nd4 {[%clk 0:01:57.9]} 19. Nf3 {[%clk 0:01:31.5]}
19... Nxf3+ {[%clk 0:01:54.2]} 20. Qxf3 {[%clk 0:01:31.8]} 20... Qc3 {[%clk
0:01:49.8]} 21. Re2 {[%clk 0:01:21]} 21... Rac8 {[%clk 0:01:43.6]} 22. f5 {[%clk
0:01:15.6]} 22... Qd4+ {[%clk 0:01:37.7]} 23. Kh1 {[%clk 0:01:14.9]} 23... Rf8
{[%clk 0:01:21.8]} 24. Qh3 {[%clk 0:00:59.3]} 24... Kh8 {[%clk 0:01:10.7]} 25.
Ref2 {[%clk 0:00:55.6]} 25... exf5 {[%clk 0:00:58.6]} 26. exd5 {[%clk
0:00:49.6]} 26... cxd5 {[%clk 0:00:54.9]} 27. Rxf5 {[%clk 0:00:47.5]} 27... Rce8
{[%clk 0:00:48.3]} 28. Qf3 {[%clk 0:00:43.6]} 28... Qc3 {[%clk 0:00:20.9]} 29.
Rxf7 {[%clk 0:00:35.6]} 29... Rg8 {[%clk 0:00:20.5]} 30. Qf2 {[%clk 0:00:18.6]}
30... c4 {[%clk 0:00:20.5]} 31. dxc4 {[%clk 0:00:18.1]} 31... dxc4 {[%clk
0:00:20.5]} 32. Rc7 {[%clk 0:00:17.8]} 32... Qa5 {[%clk 0:00:16.5]} 33. Qxa7
{[%clk 0:00:12.2]} 33... Qxa7 {[%clk 0:00:09]} 34. Rxa7 {[%clk 0:00:12.2]} 34...
Re2 {[%clk 0:00:08.4]} 35. bxc4 {[%clk 0:00:09.3]} 35... Rxc2 {[%clk 0:00:07.9]}
36. h3 {[%clk 0:00:06]} 36... Rxc4 {[%clk 0:00:07.3]} 37. Rff7 {[%clk
0:00:06.1]} 37... Rc2 {[%clk 0:00:06.8]} 38. a4 {[%clk 0:00:05.9]} 38... Ra2
{[%clk 0:00:06.8]} 39. a5 {[%clk 0:00:06]} 39... h6 {[%clk 0:00:07.1]} 40. a6
{[%clk 0:00:05.4]} 40... Kh7 {[%clk 0:00:07.3]} 41. Rfd7 {[%clk 0:00:03.7]}
41... Ra1+ {[%clk 0:00:06.2]} 42. Kh2 {[%clk 0:00:03.7]} 42... Ra2 {[%clk
0:00:06.5]} 43. Rd6 {[%clk 0:00:04.1]} 43... Rf8 {[%clk 0:00:06.5]} 44. Rb7
{[%clk 0:00:04.2]} 44... Rff2 {[%clk 0:00:05.2]} 45. Kg3 {[%clk 0:00:04]} 45...
Rxg2+ {[%clk 0:00:05]} 46. Kf4 {[%clk 0:00:04.1]} 46... Rgf2+ {[%clk 0:00:03.8]}
47. Ke5 {[%clk 0:00:04.2]} 47... Rfe2+ {[%clk 0:00:04.3]} 48. Kd5 {[%clk
0:00:04.2]} 48... Red2+ {[%clk 0:00:04.8]} 49. Ke6 {[%clk 0:00:03.5]} 49... Re2+
{[%clk 0:00:04.5]} 50. Kd7 {[%clk 0:00:03.7]} 50... Rh2 {[%clk 0:00:02.8]} 51.
a7 {[%clk 0:00:03.7]} 51... Rxh3 {[%clk 0:00:01.5]} 52. Rdb6 {[%clk 0:00:02.7]}
52... Rha3 {[%clk 0:00:01.9]} 53. Kc7 {[%clk 0:00:02.2]} 53... Rxa7 {[%clk
0:00:02.4]} 54. Kb8 {[%clk 0:00:01.9]} 54... Rxb7+ {[%clk 0:00:03.3]} 55. Rxb7
{[%clk 0:00:02.3]} 55... Kg6 {[%clk 0:00:03.3]} 0-1

[Event "*** Titled Tuesday Blitz"]
[Site "Chess.com"]
[Date "2020.05.12"]
[Round "6"]
[White "Oleksandr_Bortnyk"]
[Black "GMSrinath"]
[Result "1/2-1/2"]
[WhiteElo "2983"]
[BlackElo "2830"]
[TimeControl "180+1"]
[EndTime "11:07:40 PDT"]
[Termination "Game drawn - insufficient material"]

1. e4 {[%clk 0:03:00.9]} 1... c6 {[%clk 0:02:59.1]} 2. c4 {[%clk 0:02:59.7]}
2... d5 {[%clk 0:02:59]} 3. cxd5 {[%clk 0:03:00.6]} 3... cxd5 {[%clk 0:02:59.9]}
4. exd5 {[%clk 0:03:01.5]} 4... Nf6 {[%clk 0:02:59.7]} 5. Qa4+ {[%clk
0:03:01.8]} 5... Nbd7 {[%clk 0:03:00.2]} 6. Nc3 {[%clk 0:03:02.3]} 6... g6
{[%clk 0:03:00.7]} 7. Bc4 {[%clk 0:03:03.2]} 7... Bg7 {[%clk 0:03:01.3]} 8. Nf3
{[%clk 0:03:04.1]} 8... O-O {[%clk 0:03:01.8]} 9. d3 {[%clk 0:03:05]} 9... a6
{[%clk 0:02:59.9]} 10. Qa3 {[%clk 0:03:05.3]} 10... Nh5 {[%clk 0:02:21.2]} 11.
O-O {[%clk 0:02:23.2]} 11... Rb8 {[%clk 0:02:21.3]} 12. Bb3 {[%clk 0:02:16.3]}
12... b5 {[%clk 0:02:21.4]} 13. Qb4 {[%clk 0:02:16.7]} 13... a5 {[%clk
0:02:11.6]} 14. Qh4 {[%clk 0:02:16.2]} 14... a4 {[%clk 0:01:57.5]} 15. Bc2
{[%clk 0:02:16]} 15... a3 {[%clk 0:01:57.9]} 16. Qb4 {[%clk 0:02:06.5]} 16...
Ndf6 {[%clk 0:01:33.4]} 17. Bb3 {[%clk 0:01:59.5]} 17... Bb7 {[%clk 0:01:27.9]}
18. Rb1 {[%clk 0:01:27.6]} 18... Nxd5 {[%clk 0:01:18.8]} 19. Nxd5 {[%clk
0:01:24.8]} 19... Bxd5 {[%clk 0:01:19.7]} 20. Bxd5 {[%clk 0:01:25.1]} 20... Qxd5
{[%clk 0:01:20.6]} 21. Qxa3 {[%clk 0:01:23.4]} 21... Ra8 {[%clk 0:01:10.7]} 22.
Qxe7 {[%clk 0:01:13.4]} 22... Qxd3 {[%clk 0:01:07.1]} 23. Bg5 {[%clk 0:01:10.8]}
23... Rxa2 {[%clk 0:01:00.6]} 24. Rbd1 {[%clk 0:01:01]} 24... Qf5 {[%clk
0:00:44.5]} 25. b4 {[%clk 0:00:51.9]} 25... h6 {[%clk 0:00:42.2]} 26. Be3 {[%clk
0:00:48.2]} 26... Nf4 {[%clk 0:00:38.3]} 27. Qb7 {[%clk 0:00:38.5]} 27... Rb2
{[%clk 0:00:27.5]} 28. Bxf4 {[%clk 0:00:13.6]} 28... Qxf4 {[%clk 0:00:28.4]} 29.
Qxb5 {[%clk 0:00:13.8]} 29... Rxb4 {[%clk 0:00:25.4]} 30. Qd7 {[%clk 0:00:13.8]}
30... Rbb8 {[%clk 0:00:23.5]} 31. Rfe1 {[%clk 0:00:13.6]} 31... Qf6 {[%clk
0:00:23.4]} 32. Qg4 {[%clk 0:00:11]} 32... h5 {[%clk 0:00:23.5]} 33. Qe4 {[%clk
0:00:10.5]} 33... Rbd8 {[%clk 0:00:22.8]} 34. h4 {[%clk 0:00:10.7]} 34... Rxd1
{[%clk 0:00:22]} 35. Rxd1 {[%clk 0:00:11.6]} 35... Rd8 {[%clk 0:00:22.2]} 36.
Re1 {[%clk 0:00:10.3]} 36... Bh6 {[%clk 0:00:20.3]} 37. Qb7 {[%clk 0:00:08.9]}
37... Bf8 {[%clk 0:00:14.2]} 38. g3 {[%clk 0:00:07.9]} 38... Rd3 {[%clk
0:00:12.5]} 39. Kg2 {[%clk 0:00:08.1]} 39... Qf5 {[%clk 0:00:08.7]} 40. Re8
{[%clk 0:00:05.9]} 40... Qd5 {[%clk 0:00:08.3]} 41. Qxd5 {[%clk 0:00:02.9]}
41... Rxd5 {[%clk 0:00:09.2]} 42. Ng5 {[%clk 0:00:02.5]} 42... Kg7 {[%clk
0:00:08.9]} 43. Rb8 {[%clk 0:00:02.4]} 43... Be7 {[%clk 0:00:08.3]} 44. Nf3
{[%clk 0:00:02.4]} 44... Rf5 {[%clk 0:00:08.3]} 45. Rb7 {[%clk 0:00:02.8]} 45...
Bc5 {[%clk 0:00:08.7]} 46. Rb2 {[%clk 0:00:02.9]} 46... Rf6 {[%clk 0:00:08.9]}
47. Rc2 {[%clk 0:00:03.3]} 47... Bb6 {[%clk 0:00:09.4]} 48. Ng5 {[%clk
0:00:03.6]} 48... Rd6 {[%clk 0:00:05.1]} 49. Ne4 {[%clk 0:00:03.4]} 49... Re6
{[%clk 0:00:05.1]} 50. f3 {[%clk 0:00:03.9]} 50... f6 {[%clk 0:00:04.8]} 51. Rb2
{[%clk 0:00:03.9]} 51... Bd4 {[%clk 0:00:02.9]} 52. Rb7+ {[%clk 0:00:03.9]}
52... Kg8 {[%clk 0:00:03.5]} 53. Rd7 {[%clk 0:00:03.7]} 53... Bb2 {[%clk
0:00:03.3]} 54. Rc7 {[%clk 0:00:02.9]} 54... Rb6 {[%clk 0:00:03.2]} 55. Rd7
{[%clk 0:00:02.9]} 55... Be5 {[%clk 0:00:03]} 56. g4 {[%clk 0:00:02.9]} 56...
Rb2+ {[%clk 0:00:01.4]} 57. Kf1 {[%clk 0:00:03.3]} 57... hxg4 {[%clk 0:00:02.3]}
58. fxg4 {[%clk 0:00:03.7]} 58... Rb4 {[%clk 0:00:03.1]} 59. Nf2 {[%clk
0:00:02.3]} 59... Rf4 {[%clk 0:00:03.6]} 60. Kg2 {[%clk 0:00:02.6]} 60... Bd4
{[%clk 0:00:04.2]} 61. Nd3 {[%clk 0:00:01.8]} 61... Rxg4+ {[%clk 0:00:04.6]} 62.
Kf3 {[%clk 0:00:01.4]} 62... Rxh4 {[%clk 0:00:04.7]} 63. Nf4 {[%clk 0:00:01.9]}
63... Be5 {[%clk 0:00:04.1]} 64. Nxg6 {[%clk 0:00:02]} 64... Ra4 {[%clk
0:00:04.7]} 65. Nxe5 {[%clk 0:00:01.4]} 65... fxe5 {[%clk 0:00:05.6]} 66. Re7
{[%clk 0:00:02.1]} 66... Ra5 {[%clk 0:00:05.9]} 67. Ke4 {[%clk 0:00:02.6]} 67...
Kf8 {[%clk 0:00:06.6]} 68. Rxe5 {[%clk 0:00:03.1]} 68... Rxe5+ {[%clk
0:00:05.6]} 69. Kxe5 {[%clk 0:00:04]} 1/2-1/2